fUSD/lending_fUSD_20240927
["ID","MTS","AMOUNT","RATE_DAILY","PERIOD"]
[339263969,1727421040168,-84806.575736,0.00012893,2]
[339263970,1727421040177,-255.0,0.00012894,2]
[339263972,1727421040186,-300.0,0.00012899,2]
[339263974,1727421040195,-300.0,0.00012899,2]
[339263976,1727421040204,-300.0,0.00012899,2]
[339263977,1727421040213,-300.0,0.00012899,2]
[339263979,1727421040222,-300.0,0.00012899,2]
[339263981,1727421040231,-300.0,0.00012899,2]
[339263983,1727421040240,-300.0,0.00012899,2]
[339263985,1727421040249,-300.0,0.00012899,2]
[339263986,1727421040259,-300.0,0.00012899,2]
[339263988,1727421040268,-300.0,0.00012899,2]
[339263990,1727421040277,-300.0,0.00012899,2]
[339263992,1727421040286,-300.0,0.00012899,2]
[339263994,1727421040295,-500.0,0.00012899,2]
[339263995,1727421040303,-500.0,0.00012899,2]
[339263997,1727421040313,-500.0,0.00012899,2]
[339263999,1727421040323,-500.0,0.00012899,2]
[339264001,1727421040332,-500.0,0.00012899,2]
[339264003,1727421040341,-500.0,0.00012899,2]
[339264004,1727421040350,-500.0,0.00012899,2]
[339264006,1727421040360,-500.0,0.00012899,2]
[339264008,1727421040371,-500.0,0.00012899,2]
[339264010,1727421040381,-500.0,0.00012899,2]
[339264012,1727421040391,-500.0,0.00012899,2]
[339264014,1727421040400,-500.0,0.00012899,2]
[339264016,1727421040409,-500.0,0.00012899,2]
[339264017,1727421040420,-500.0,0.00012899,2]
[339264019,1727421040429,-407.55366307,0.00012899,2]
[339264021,1727421040439,-500.0,0.00012899,2]
[339264023,1727421040448,-500.0,0.00012899,2]
[339264025,1727421040458,-500.0,0.00012899,2]
[339264027,1727421040467,-500.0,0.00012899,2]
[339264029,1727421040477,-500.0,0.00012899,2]
[339264030,1727421040486,-409.47360046,0.00012899,2]
[339264032,1727421040496,-500.0,0.00012899,2]
[339264034,1727421040505,-500.0,0.00012899,2]
[339264036,1727421040514,-500.0,0.00012899,2]
[339264038,1727421040523,-500.0,0.00012899,2]
[339264039,1727421040533,-372.56497502,0.00012899,2]
[339264041,1727421040542,-500.0,0.00012899,2]
[339264043,1727421040552,-500.0,0.00012899,2]
[339264045,1727421040561,-500.0,0.00012899,2]
[339264047,1727421040570,-500.0,0.00012899,2]
[339264049,1727421040580,-324.17992648,0.00012899,2]
[339264050,1727421040589,-112113.07297702,0.000129,2]
[339264052,1727421040598,-1496043.56569774,0.000129,2]
[339264075,1727421040839,-328.36293244,0.0001285,2]
[339264076,1727421040849,-8768.2807987,0.000129,2]
[339264077,1727421040862,-8947.21879473,0.000129,2]
[339264078,1727421040875,-8943.78386462,0.000129,2]
[339264079,1727421040887,-9077.54866152,0.000129,2]
[339264080,1727421040900,-8943.84023489,0.000129,2]
[339264098,1727421041159,-12667.05737768,0.000129,2]
[339264339,1727421042916,-6271.1271617,0.000129,2]
[339264609,1727421045591,-197.498611,0.0001239,2]
[339264612,1727421045600,-35138.56701297,0.000129,2]
[339264616,1727421045636,-2587.69755451,0.000129,2]
[339264619,1727421045648,-2661.0,0.000129,2]
[339264633,1727421045779,-11475.16853423,0.000129,2]
[339264635,1727421045791,-6555.17334851,0.000129,2]
[339265423,1727421055230,219.39,0.00010074,2]
[339265545,1727421106285,1776.13,0.000149,31]
[339265546,1727421106346,1776.13,0.000149,31]
[339265547,1727421106403,1776.13,0.000149,31]
[339265548,1727421106469,1776.13,0.000149,31]
[339265549,1727421106529,1776.13,0.000149,31]
[339265550,1727421106587,1776.13,0.000149,31]
[339265551,1727421106656,1776.13,0.000149,31]
[339265552,1727421106702,1776.13,0.000149,31]
[339265553,1727421106772,1776.13,0.000149,31]
[339265554,1727421106835,1776.13,0.000149,31]
[339265555,1727421106992,1776.13,0.000149,31]
[339265556,1727421107030,1776.13,0.000149,31]
[339265557,1727421107062,1776.13,0.000149,31]
[339265558,1727421107102,1776.13,0.000149,31]
[339265559,1727421107138,1776.13,0.000149,31]
[339265560,1727421107191,1776.13,0.000149,31]
[339265561,1727421122953,600.0,0.00010068,2]
[339265562,1727421131773,1235.262,0.00011059,2]
[339265563,1727421349249,1238.0,0.000149,31]
[339265564,1727421371916,1238.34,0.000149,31]
[339265565,1727421398223,150.0,0.00011107,2]
[339265566,1727421701028,208.42,9.785e-05,2]
[339265567,1727421718236,1492.1,0.000149,31]
[339265568,1727421718294,1492.1,0.000149,31]
[339265569,1727421718359,1492.1,0.000149,31]
[339265570,1727421718417,1492.1,0.000149,31]
[339265571,1727421718476,1492.1,0.000149,31]
[339265572,1727421718535,1492.1,0.000149,31]
[339265573,1727421718593,1492.1,0.000149,31]
[339265574,1727421718651,1492.1,0.000149,31]
[339265575,1727421718712,1492.1,0.000149,31]
[339265576,1727421718774,1492.1,0.000149,31]
[339265577,1727421718842,1492.1,0.000149,31]
[339265578,1727421718900,1492.1,0.000149,31]
[339265579,1727421718970,1492.1,0.000149,31]
[339265580,1727421719011,1492.1,0.000149,31]
[339265581,1727421719093,1492.1,0.000149,31]
[339265582,1727421719144,1492.1,0.000149,31]
[339265583,1727421740311,1050.0,0.00011,2]
[339265584,1727421793222,150.5,0.00013207,120]
[339265585,1727421793674,150.5,0.00013197,120]
[339265586,1727421794122,37.80718854,0.00013187,120]
[339265587,1727421794147,122.77281146,0.00013187,120]
[339265598,1727421929389,38007.00910672,0.000101,2]
[339265599,1727422020811,225.93,0.00010959,2]
[339265623,1727422094575,2782005.83292904,0.00011,3]
[339265624,1727422094600,284894.70029262,0.00011,3]
[339265629,1727422144844,2300.0,0.00013,30]
[339265890,1727422231898,-500.0,0.00011164,2]
[339265891,1727422231908,-55.90330277,0.00011438,2]
[339265892,1727422231920,-327.85685687,0.00011438,2]
[339265893,1727422231932,-216.23984036,0.00011438,2]
[339265894,1727422231942,-172.89,0.00011534,2]
[339265895,1727422231951,-8.92302465,0.00011536,2]
[339265896,1727422231963,-311.1478536,0.00011536,2]
[339265897,1727422231975,-298.3,0.00011536,2]
[339265898,1727422231987,-381.62912175,0.00011536,2]
[339265899,1727422231996,-250.0,0.00011617,2]
[339265900,1727422232006,-128.0159245,0.00011632,2]
[339265901,1727422232017,-100.9950755,0.00011632,2]
[339265902,1727422232027,-250.0,0.00011642,2]
[339265903,1727422232038,-188.47551644,0.00011642,2]
[339265904,1727422232049,-161.48448356,0.00011642,2]
[339265905,1727422232058,-1029.91,0.00011658,2]
[339265906,1727422232068,-1289.80971633,0.00011732,2]
[339265907,1727422232081,-1003.17028367,0.00011732,2]
[339265908,1727422232091,-499.99,0.00011732,2]
[339265909,1727422232101,-233.31758394,0.00011776,2]
[339265910,1727422232114,-66.68241606,0.00011776,2]
[339265911,1727422232123,-222.0,0.00011777,2]
[339265912,1727422232133,-160.5,0.00011777,2]
[339265913,1727422232143,-467.42,0.00011826,2]
[339265914,1727422232155,-2993.78,0.00011856,2]
[339265915,1727422232165,-172.71,0.0001195,2]
[339265916,1727422232174,-3893.8233883,0.00012,2]
[339265917,1727422232186,-7058.09753364,0.00012,2]
[339265918,1727422232198,-8969.12578278,0.00012,2]
[339265919,1727422232210,-462.57098659,0.00012,2]
[339265921,1727422232222,-1865.69249295,0.00012,2]
[339265922,1727422232233,-505.38615579,0.00012,2]
[339265923,1727422232252,-619.14994573,0.00012,2]
[339265924,1727422232264,-2336.64345204,0.00012,2]
[339265925,1727422232275,-1926.93036806,0.00012,2]
[339265926,1727422232288,-7181.68930431,0.00012,2]
[339265927,1727422232297,-208.42,0.00012049,2]
[339265928,1727422232306,-37.00531592,0.00012191,2]
[339265929,1727422232318,-112.99468408,0.00012191,2]
[339265930,1727422232327,-435.59,0.00012192,2]
[339265931,1727422232337,-150.0,0.00012192,2]
[339265932,1727422232347,-358.13,0.00012192,2]
[339265933,1727422232357,-300.0,0.00012192,2]
[339265934,1727422232366,-150.0,0.00012192,2]
[339265935,1727422232376,-150.0,0.00012192,2]
[339265936,1727422232387,-300.0,0.00012192,2]
[339265937,1727422232397,-449.42,0.00012192,2]
[339265938,1727422232407,-150.0,0.00012192,2]
[339265939,1727422232416,-81.61443127,0.00012192,2]
[339265940,1727422232428,-68.38556873,0.00012192,2]
[339265941,1727422232438,-428.44,0.00012192,2]
[339265942,1727422232448,-150.0,0.00012192,2]
[339265943,1727422232458,-104.56444634,0.00012192,2]
[339265944,1727422232469,-45.43555366,0.00012192,2]
[339265945,1727422232479,-428.44,0.00012192,2]
[339265946,1727422232488,-150.0,0.00012192,2]
[339265947,1727422232498,-148.31521701,0.00012192,2]
[339265948,1727422232509,-1.68478299,0.00012192,2]
[339265949,1727422232519,-150.0,0.00012192,2]
[339265950,1727422232528,-190.260463,0.0001239,2]
[339265951,1727422232537,-157.998887,0.0001239,2]
[339265952,1727422232547,-178.51864,0.0001239,2]
[339265953,1727422232556,-1296.0,0.000125,2]
[339265954,1727422232565,-500.0,0.00012534,2]
[339265955,1727422232575,-157.998887,0.00012545,2]
[339265956,1727422232584,-1267.53834001,0.00012598,2]
[339265957,1727422232600,-2115.1297761,0.00012598,2]
[339265958,1727422232609,-157.998887,0.000127,2]
[339265959,1727422232618,-190.260463,0.000127,2]
[339265960,1727422232627,-186.56,0.00012718,2]
[339265961,1727422232637,-217.83184526,0.00012726,2]
[339265962,1727422232646,-150.0,0.00012735,2]
[339265963,1727422232655,-1420.62329037,0.00012755,2]
[339265964,1727422232664,-1500.0,0.00012765,2]
[339265965,1727422232673,-1420.62329036,0.00012771,2]
[339265966,1727422232682,-1420.62329036,0.00012787,2]
[339265967,1727422232692,-3098.6984,0.00012793,2]
[339265968,1727422232701,-324.2031,0.000128,2]
[339265969,1727422232711,-5000.0,0.000128,2]
[339265970,1727422232720,-1350.0,0.000128,2]
[339265971,1727422232730,-174.17734119,0.000128,2]
[339265972,1727422232739,-237.85037377,0.000128,2]
[339265973,1727422232749,-4163.44683194,0.000128,2]
[339265974,1727422232759,-159.71256512,0.000128,2]
[339265975,1727422232769,-1420.62329036,0.00012803,2]
[339265976,1727422232779,-600.0,0.00012808,2]
[339265977,1727422232791,-1420.62329036,0.00012819,2]
[339265978,1727422232806,-1420.62329036,0.00012836,2]
[339265979,1727422232815,-1500.0,0.00012838,2]
[339265980,1727422232825,-437.385,0.00012839,2]
[339265981,1727422232834,-155.453,0.00012839,2]
[339265982,1727422232844,-6309.42137716,0.00012842,2]
[339265983,1727422232853,-4163.44683193,0.0001285,2]
[339265984,1727422232863,-1420.62329036,0.00012852,2]
[339265985,1727422232873,-18193.55772943,0.00012852,2]
[339265986,1727422232885,-976.47953325,0.00012852,2]
[339265987,1727422232896,-904.08234998,0.00012852,2]
[339265988,1727422232908,-118013.02835862,0.00012852,2]
[339265989,1727422232918,-157.998887,0.00012855,2]
[339265990,1727422232928,-1420.62329036,0.00012868,2]
[339265991,1727422232938,-500.0,0.00012873,2]
[339265992,1727422232948,-802.10750314,0.00012876,2]
[339265993,1727422232958,-1420.62329036,0.00012884,2]
[339265994,1727422232967,-152.3,0.0001289,2]
[339265995,1727422232977,-152.3,0.0001289,2]
[339265996,1727422232987,-2574.8343635,0.00012896,2]
[339265997,1727422232996,-2976.8861393,0.00012896,2]
[339265998,1727422233006,-8267.4123285,0.00012896,2]
[339265999,1727422233016,-300.0,0.00012899,2]
[339266000,1727422233025,-300.0,0.00012899,2]
[339266001,1727422233038,-300.0,0.00012899,2]
[339266002,1727422233047,-300.0,0.00012899,2]
[339266003,1727422233057,-300.0,0.00012899,2]
[339266004,1727422233067,-300.0,0.00012899,2]
[339266005,1727422233077,-300.0,0.00012899,2]
[339266006,1727422233086,-300.0,0.00012899,2]
[339266007,1727422233097,-300.0,0.00012899,2]
[339266008,1727422233108,-300.0,0.00012899,2]
[339266009,1727422233118,-363.96418,0.00012899,2]
[339266010,1727422233127,-500.0,0.00012899,2]
[339266011,1727422233136,-500.0,0.00012899,2]
[339266012,1727422233150,-500.0,0.00012899,2]
[339266013,1727422233159,-640.26368814,0.00012899,2]
[339266014,1727422233168,-500.0,0.00012899,2]
[339266015,1727422233178,-500.0,0.00012899,2]
[339266016,1727422233187,-500.0,0.00012899,2]
[339266017,1727422233196,-500.0,0.00012899,2]
[339266018,1727422233206,-500.0,0.00012899,2]
[339266019,1727422233215,-500.0,0.00012899,2]
[339266020,1727422233225,-573.4586,0.00012899,2]
[339266021,1727422233235,-5869.0,0.000129,2]
[339266022,1727422233244,-150.0,0.000129,2]
[339266023,1727422233254,-3601.376,0.000129,2]
[339266024,1727422233263,-1147.0,0.000129,2]
[339266025,1727422233273,-121825.2596205,0.000129,2]
[339266026,1727422233283,-350685.14545915,0.000129,2]
[339266027,1727422233296,-480.79545237,0.000129,2]
[339266028,1727422233307,-206593.42763305,0.000129,2]
[339266030,1727422237878,-316.42,0.00011338,2]
[339266031,1727422237887,-77.72575585,0.000128,2]
[339266032,1727422237899,-250.11388945,0.000128,2]
[339266033,1727422237908,-500.0,0.00012873,2]
[339266034,1727422237918,-25.50165014,0.000129,2]
[339266035,1727422237929,-435.35854429,0.000129,2]
[339266037,1727422237942,-1107.2408442,0.000129,2]
[339266038,1727422237953,-19177.27197511,0.000129,2]
[339266040,1727422237964,-965.47893929,0.000129,2]
[339266041,1727422237976,-1003.92586778,0.000129,2]
[339266042,1727422237987,-4009.56358,0.000129,2]
[339266043,1727422237999,-788.73224966,0.000129,2]
[339266044,1727422238010,-1919.49092263,0.000129,2]
[339266045,1727422238021,-2388.94041669,0.000129,2]
[339266046,1727422238033,-3125.7061928,0.000129,2]
[339266047,1727422238045,-3235.77638406,0.000129,2]
[339266048,1727422238056,-690.13300275,0.000129,2]
[339266049,1727422238068,-1507.57772365,0.000129,2]
[339266050,1727422238079,-9777.40127067,0.000129,2]
[339266051,1727422238090,-2643.95729002,0.000129,2]
[339266052,1727422238102,-29532.7655,0.000129,2]
[339266053,1727422238114,-1708.49670922,0.000129,2]
[339266054,1727422238125,-3146.7938,0.000129,2]
[339266055,1727422238137,-884.28010879,0.000129,2]
[339266056,1727422238152,-290636.29932956,0.000129,2]
[339266057,1727422238164,-346.41556832,0.000129,2]
[339266058,1727422238176,-3876.89018452,0.000129,2]
[339266059,1727422238308,-2366806.44707191,0.000129,2]
[339266060,1727422238318,-4030.07,0.000129,2]
[339266061,1727422238328,-1562127.94529115,0.000129,2]
[339266062,1727422238337,-715193.09349295,0.000129,2]
[339266063,1727422238347,-990988.15462625,0.000129,2]
[339266064,1727422238358,-174.0,0.000129,2]
[339266065,1727422238367,-2001.8,0.000129,2]
[339266066,1727422238377,-151.9816,0.000129,2]
[339266067,1727422238388,-151.0,0.000129,2]
[339266068,1727422238397,-151.0,0.000129,2]
[339266069,1727422238407,-151.0,0.000129,2]
[339266071,1727422238417,-151.0,0.000129,2]
[339266072,1727422238427,-152.461883,0.000129,2]
[339266074,1727422238437,-151.0,0.000129,2]
[339266076,1727422238447,-151.0,0.000129,2]
[339266078,1727422238457,-151.0,0.000129,2]
[339266080,1727422238466,-151.550859,0.000129,2]
[339266082,1727422238476,-151.0,0.000129,2]
[339266084,1727422238485,-151.0,0.000129,2]
[339266085,1727422238495,-151.0,0.000129,2]
[339266087,1727422238504,-151.0,0.000129,2]
[339266089,1727422238515,-151.0,0.000129,2]
[339266091,1727422238526,-219.854782,0.000129,2]
[339266093,1727422238536,-219.854782,0.000129,2]
[339266096,1727422238547,-151.0,0.000129,2]
[339266097,1727422238556,-151.0,0.000129,2]
[339266099,1727422238566,-151.0,0.000129,2]
[339266101,1727422238575,-151.0,0.000129,2]
[339266104,1727422238584,-151.0,0.000129,2]
[339266106,1727422238594,-151.0,0.000129,2]
[339266108,1727422238603,-151.638813,0.000129,2]
[339266110,1727422238613,-176.113264,0.000129,2]
[339266112,1727422238622,-176.113264,0.000129,2]
[339266114,1727422238632,-151.0,0.000129,2]
[339266116,1727422238641,-152.737949,0.000129,2]
[339266118,1727422238651,-821.911528,0.000129,2]
[339266120,1727422238660,-821.911528,0.000129,2]
[339266122,1727422238670,-151.0,0.000129,2]
[339266124,1727422238680,-151.558775,0.000129,2]
[339266126,1727422238689,-151.0,0.000129,2]
[339266128,1727422238699,-151.0,0.000129,2]
[339266130,1727422238708,-151.0,0.000129,2]
[339266132,1727422238717,-151.0,0.000129,2]
[339266134,1727422238727,-293.391892,0.000129,2]
[339266136,1727422238737,-151.0,0.000129,2]
[339266138,1727422238746,-152.048431,0.000129,2]
[339266140,1727422238755,-151.0,0.000129,2]
[339266142,1727422238765,-151.0,0.000129,2]
[339266144,1727422238774,-151.0,0.000129,2]
[339266146,1727422238783,-151.0,0.000129,2]
[339266148,1727422238794,-330.127929,0.000129,2]
[339266150,1727422238803,-330.127929,0.000129,2]
[339266152,1727422238812,-330.127929,0.000129,2]
[339266154,1727422238822,-330.127929,0.000129,2]
[339266156,1727422238831,-151.0,0.000129,2]
[339266158,1727422238840,-151.0,0.000129,2]
[339266160,1727422238849,-151.0,0.000129,2]
[339266162,1727422238859,-151.0,0.000129,2]
[339266164,1727422238868,-151.0,0.000129,2]
[339266166,1727422238880,-151.945115,0.000129,2]
[339266168,1727422238889,-860.967758,0.000129,2]
[339266170,1727422238898,-860.967758,0.000129,2]
[339266172,1727422238907,-151.0,0.000129,2]
[339266174,1727422238917,-860.967758,0.000129,2]
[339266176,1727422238926,-151.0,0.000129,2]
[339266178,1727422238935,-860.967758,0.000129,2]
[339266180,1727422238944,-151.0,0.000129,2]
[339266182,1727422238954,-151.0,0.000129,2]
[339266184,1727422238963,-151.0,0.000129,2]
[339266186,1727422238972,-151.0,0.000129,2]
[339266188,1727422238981,-151.0,0.000129,2]
[339266190,1727422238990,-151.0,0.000129,2]
[339266192,1727422238999,-313.846725,0.000129,2]
[339266194,1727422239009,-313.846725,0.000129,2]
[339266196,1727422239018,-313.846725,0.000129,2]
[339266198,1727422239028,-313.846725,0.000129,2]
[339266199,1727422239038,-478.41124,0.000129,2]
[339266201,1727422239047,-478.41124,0.000129,2]
[339266203,1727422239056,-478.41124,0.000129,2]
[339266205,1727422239065,-478.41124,0.000129,2]
[339266207,1727422239075,-151.0,0.000129,2]
[339266209,1727422239086,-151.0,0.000129,2]
[339266212,1727422239097,-151.761961,0.000129,2]
[339266213,1727422239106,-174.17734118,0.000129,2]
[339266215,1727422239116,-151.0,0.000129,2]
[339266217,1727422239125,-151.0,0.000129,2]
[339266219,1727422239135,-292.065722,0.000129,2]
[339266221,1727422239144,-151.0,0.000129,2]
[339266223,1727422239157,-151.0,0.000129,2]
[339266225,1727422239167,-151.0,0.000129,2]
[339266227,1727422239177,-151.853174,0.000129,2]
[339266229,1727422239186,-151.0,0.000129,2]
[339266231,1727422239196,-151.0,0.000129,2]
[339266233,1727422239205,-156.614745,0.000129,2]
[339266235,1727422239215,-151.0,0.000129,2]
[339266236,1727422239224,-151.0,0.000129,2]
[339266238,1727422239234,-151.360809,0.000129,2]
[339266241,1727422239244,-151.0,0.000129,2]
[339266242,1727422239253,-151.0,0.000129,2]
[339266244,1727422239262,-165.990249,0.000129,2]
[339266246,1727422239272,-165.990249,0.000129,2]
[339266248,1727422239281,-151.0,0.000129,2]
[339266250,1727422239292,-151.0,0.000129,2]
[339266252,1727422239301,-165.990249,0.000129,2]
[339266254,1727422239312,-165.990249,0.000129,2]
[339266273,1727422239499,-151.0,0.000129,2]
[339266275,1727422239510,-151.0,0.000129,2]
[339266277,1727422239520,-151.0,0.000129,2]
[339266279,1727422239531,-151.0,0.000129,2]
[339266281,1727422239541,-151.0,0.000129,2]
[339266283,1727422239551,-151.0,0.000129,2]
[339266285,1727422239561,-151.0,0.000129,2]
[339266287,1727422239571,-151.0,0.000129,2]
[339266289,1727422239581,-151.0,0.000129,2]
[339266291,1727422239590,-212.708578,0.000129,2]
[339266293,1727422239600,-151.0,0.000129,2]
[339266295,1727422239610,-151.199191,0.000129,2]
[339266297,1727422239620,-464.291522,0.000129,2]
[339266299,1727422239631,-464.291522,0.000129,2]
[339266301,1727422239641,-151.0,0.000129,2]
[339266303,1727422239651,-151.0,0.000129,2]
[339266305,1727422239661,-464.291522,0.000129,2]
[339266307,1727422239671,-464.291522,0.000129,2]
[339266309,1727422239682,-522.083864,0.000129,2]
[339266311,1727422239692,-522.083864,0.000129,2]
[339266313,1727422239702,-522.083864,0.000129,2]
[339266315,1727422239712,-522.083864,0.000129,2]
[339266317,1727422239721,-151.0,0.000129,2]
[339266320,1727422239730,-151.0,0.000129,2]
[339266323,1727422239739,-151.0,0.000129,2]
[339266326,1727422239751,-151.0,0.000129,2]
[339266329,1727422239760,-151.0,0.000129,2]
[339266332,1727422239770,-151.0,0.000129,2]
[339266335,1727422239780,-151.0,0.000129,2]
[339266338,1727422239791,-970.623364,0.000129,2]
[339266340,1727422239810,-151.250286,0.000129,2]
[339266342,1727422239820,-970.623364,0.000129,2]
[339266344,1727422239830,-970.623364,0.000129,2]
[339266346,1727422239840,-970.623364,0.000129,2]
[339266348,1727422239849,-151.0,0.000129,2]
[339266350,1727422239859,-151.0,0.000129,2]
[339266352,1727422239869,-151.0,0.000129,2]
[339266354,1727422239883,-151.0,0.000129,2]
[339266356,1727422239892,-151.0,0.000129,2]
[339266358,1727422239902,-151.0,0.000129,2]
[339266360,1727422239912,-151.0,0.000129,2]
[339266362,1727422239921,-151.0,0.000129,2]
[339266364,1727422239931,-337.671011,0.000129,2]
[339266366,1727422239942,-337.671011,0.000129,2]
[339266368,1727422239952,-337.671011,0.000129,2]
[339266370,1727422239962,-337.671011,0.000129,2]
[339266372,1727422239974,-173.437898,0.000129,2]
[339266374,1727422239985,-173.437898,0.000129,2]
[339266376,1727422239995,-173.437898,0.000129,2]
[339266378,1727422240005,-173.437898,0.000129,2]
[339266380,1727422240015,-151.0,0.000129,2]
[339266382,1727422240025,-151.0,0.000129,2]
[339266384,1727422240034,-151.0,0.000129,2]
[339266386,1727422240049,-151.0,0.000129,2]
[339266388,1727422240059,-151.0,0.000129,2]
[339266390,1727422240068,-151.0,0.000129,2]
[339266392,1727422240078,-151.0,0.000129,2]
[339266394,1727422240087,-151.0,0.000129,2]
[339266396,1727422240097,-151.398369,0.000129,2]
[339266398,1727422240107,-151.0,0.000129,2]
[339266400,1727422240117,-151.0,0.000129,2]
[339266402,1727422240127,-151.0,0.000129,2]
[339266404,1727422240137,-151.0,0.000129,2]
[339266406,1727422240148,-1420.62329036,0.000129,2]
[339266408,1727422240160,-151.0,0.000129,2]
[339266409,1727422240169,-151.0,0.000129,2]
[339266411,1727422240179,-151.265255,0.000129,2]
[339266413,1727422240188,-795.246045,0.000129,2]
[339266415,1727422240199,-795.246045,0.000129,2]
[339266416,1727422240209,-795.246045,0.000129,2]
[339266417,1727422240218,-795.246045,0.000129,2]
[339266418,1727422240230,-151.0,0.000129,2]
[339266419,1727422240239,-1312.056814,0.000129,2]
[339266420,1727422240249,-151.0,0.000129,2]
[339266421,1727422240258,-1312.056814,0.000129,2]
[339266422,1727422240268,-151.0,0.000129,2]
[339266423,1727422240278,-151.0,0.000129,2]
[339266424,1727422240287,-1312.056814,0.000129,2]
[339266425,1727422240301,-1312.056814,0.000129,2]
[339266426,1727422240310,-268.905858,0.000129,2]
[339266427,1727422240320,-1017.525508,0.000129,2]
[339266428,1727422240330,-1017.525508,0.000129,2]
[339266429,1727422240340,-1017.525508,0.000129,2]
[339266430,1727422240350,-1017.525508,0.000129,2]
[339266432,1727422240359,-151.0,0.000129,2]
[339266434,1727422240369,-151.0,0.000129,2]
[339266436,1727422240378,-151.0,0.000129,2]
[339266438,1727422240388,-151.0,0.000129,2]
[339266440,1727422240398,-151.0,0.000129,2]
[339266442,1727422240408,-151.0,0.000129,2]
[339266443,1727422240417,-270.901679,0.000129,2]
[339266445,1727422240427,-270.901679,0.000129,2]
[339266447,1727422240436,-270.901679,0.000129,2]
[339266449,1727422240446,-270.901679,0.000129,2]
[339266451,1727422240455,-151.0,0.000129,2]
[339266453,1727422240464,-151.0,0.000129,2]
[339266455,1727422240474,-151.0,0.000129,2]
[339266457,1727422240483,-151.0,0.000129,2]
[339266459,1727422240492,-151.0,0.000129,2]
[339266461,1727422240502,-151.432328,0.000129,2]
[339266463,1727422240513,-151.0,0.000129,2]
[339266465,1727422240522,-151.0,0.000129,2]
[339266467,1727422240532,-151.0,0.000129,2]
[339266469,1727422240543,-294.19026,0.000129,2]
[339266471,1727422240553,-151.0,0.000129,2]
[339266473,1727422240562,-151.0,0.000129,2]
[339266475,1727422240572,-728237.8208567,0.000129,2]
[339266477,1727422240582,-4776.835905,0.000129,2]
[339266479,1727422240591,-4776.835905,0.000129,2]
[339266481,1727422240602,-4776.835905,0.000129,2]
[339266483,1727422240612,-4776.835905,0.000129,2]
[339266485,1727422240622,-184.89742,0.000129,2]
[339266487,1727422240631,-184.89742,0.000129,2]
[339266488,1727422240640,-184.89742,0.000129,2]
[339266490,1727422240650,-184.89742,0.000129,2]
[339266492,1727422240659,-160.95995259,0.000129,2]
[339266494,1727422240668,-160.95995259,0.000129,2]
[339266496,1727422240677,-161.45,0.000129,2]
[339266498,1727422240687,-161.08495259,0.000129,2]
[339266500,1727422240697,-161.08495259,0.000129,2]